Cogmind - Beta 15 @@@ ROGUE MODE // 2025.07.16 @ 16:06:10 Player: s0lid Result: Destroyed by P-80 Master with Gamma Rifle Performance ------------- Evolutions (8) 4000 Regions Visited (13) 2600 Robots Destroyed (149) 745 Value Destroyed (5587) 5587 Prototype IDs (16) 320 Alien Tech Used (2) 400 Bonus (3745) 3745 TOTAL SCORE: 17397 Bonus ------- High Alert Combat Kills 681 Follower Combat Kills 564 Scanned by Researcher 500 Met Sigix 2000 Cogmind --------- Core Integrity 0/1450 Matter 300/300 Energy 95/100 System Corruption 2% Temperature Cool (2) Movement Hovering (70) Location -2/Research Parts ------- > --- POWER (2) -------- (None) > --- PROPULSION (6) --- Improved Gyrokinetic Inverter > --- UTILITY (12) ----- Enhanced Optical Array Improved Melee Analysis Suite Advanced Melee Analysis Suite Advanced Melee Analysis Suite Improved Launcher Guidance Computer Improved Target Analyzer > --- WEAPON (3) ------- (None) > --- INVENTORY (5) ---- Light Quantum Reactor Advanced Force Booster Sigix Containment Pod Peak State ------------ > --- POWER ------------ Micro Antimatter Reactor Micro Antimatter Reactor > --- PROPULSION ------- Centrium Wheel Combat Gravmag System Improved Antigrav System Combat Linear Gravjet Impulse Thruster Array > --- UTILITY ---------- Improved Energy Well Enhanced Optical Array Improved Melee Analysis Suite Advanced Melee Analysis Suite Advanced Melee Analysis Suite Improved Launcher Guidance Computer Improved Launcher Guidance Computer Improved Target Analyzer Advanced Force Booster Improved Transmission Jammer Experimental EM Shield Advanced Corruption Screen > --- WEAPON ----------- Impact Mace Power Sword Plasma Lance > --- INVENTORY -------- Cooled Field Propulsion Drive Force Lance Sigix Containment Pod [Rating: 158] Favorites ----------- Power Heavy Ion Engine Engine Heavy Ion Engine Power Core Micro Fission Core Reactor Micro Antimatter Reactor Propulsion Advanced Medium Treads Treads Advanced Medium Treads Leg Aluminum Leg Wheel Wheel Hover Unit Antigrav System Flight Unit Nuclear Pulse Array Utility Advanced Targeting Computer Device Focal Shield Storage Large Storage Unit Processor Advanced Targeting Computer Hackware Improved System Shield Protection Improved Medium Armor Plating Artifact Phase Armor Weapon Plasma Sword Energy Gun Enhanced Force Rifle Energy Cannon Proton Cannon Ballistic Gun KE Penetrator Ballistic Cannon Enhanced Gauss Cannon Launcher Advanced EMP Blaster Special Weapon Improved Plasma Cutter Impact Weapon Heavy Flail Slashing Weapon Plasma Sword Piercing Weapon Plasma Lance Special Melee Weapon Datajack Build | -11 -10 -10 -8 -8 -7 -6 -5 -5 -5 -4 -3 -3 -2 ------- Run | Yrd Mat Sub Mat Sto Fac Fac Fac Was Fac Fac Res Qua Res Slots Evolved 16 | . . . 4 . 2 2 2 . . 2 2 . 2 Power 1 | . . . . . . 1 . . . . . . . Propulsion 4 | . . . 1 . . . 1 . . . . . 2 Utility 10 | . . . 3 . 1 1 1 . . 2 2 . . Weapon 1 | . . . . . 1 . . . . . . . . Parts Attached 208 | 10 3 4 7 21 4 19 76 . 2 6 22 7 27 Power 30 | 1 . 1 . 4 . 3 13 . . 2 2 1 3 Engine 13 | 1 . . . 4 . 1 6 . . 1 . . . Core 10 | . . 1 . . . 2 6 . . 1 . . . Reactor 7 | . . . . . . . 1 . . . 2 1 3 Propulsion 54 | 2 . 1 2 7 . 6 15 . . 1 4 3 13 Treads 7 | . . 1 . . . 3 3 . . . . . . Leg 11 | . . . . 7 . 3 1 . . . . . . Wheel 6 | 2 . . 2 . . . . . . . . 1 1 Hover 12 | . . . . . . . 3 . . . 2 1 6 Flight 18 | . . . . . . . 8 . . 1 2 1 6 Utility 83 | 4 1 1 3 4 2 7 35 . 2 3 11 2 8 Device 36 | 3 . 1 1 1 . 3 16 . 1 . 5 1 4 Storage 8 | 1 1 . . . . 1 5 . . . . . . Processor 27 | . . . 2 2 . 1 8 . 1 3 6 . 4 Hackware 2 | . . . . . 1 . 1 . . . . . . Protection 9 | . . . . 1 1 2 5 . . . . . . Artifact 1 | . . . . . . . . . . . . 1 . Weapon 41 | 3 2 1 2 6 2 3 13 . . . 5 1 3 Energy Gun 5 | 2 . . 1 . . . 2 . . . . . . Energy Cannon 4 | . . . . . . 1 1 . . . 2 . . Ballistic Gun 5 | 1 . . 1 1 . 1 1 . . . . . . Ballistic Cannon 3 | . . 1 . . 1 . 1 . . . . . . Launcher 9 | . 2 . . 3 1 . 1 . . . 2 . . Special Weapon 1 | . . . . . . . 1 . . . . . . Impact Weapon 4 | . . . . 1 . 1 1 . . . . . 1 Slashing Weapon 6 | . . . . . . . 5 . . . 1 . . Piercing Weapon 3 | . . . . . . . . . . . . 1 2 Special Melee Weapon 1 | . . . . 1 . . . . . . . . . Unidentified Prototypes 14 | . . . . 2 . . 5 . . . 1 3 3 Parts Lost 85 | . . 3 . 9 . . 27 . . 3 17 4 22 Power 10 | . . 1 . 2 . . 3 . . . 3 . 1 Propulsion 32 | . . 1 . 5 . . 11 . . 2 4 2 7 Utility 28 | . . 1 . 2 . . 8 . . 1 6 1 9 Weapon 15 | . . . . . . . 5 . . . 4 1 5 Highest Loss Streak 14 | . . 2 . 4 . . 11 . . 3 5 2 14 To Critical Strikes 1 | . . . . . . . . . . . . . 1 Average Backups 12 | 2 9 13 11 14 14 14 15 5 5 4 4 2 2 Power 1 | . 1 . 1 . 1 1 1 1 . . . . . Propulsion 1 | 1 2 2 1 . . 1 1 1 1 1 1 . . Utility 5 | 1 3 4 2 4 6 6 7 1 1 1 . 1 . Weapon 3 | . 2 5 6 8 6 4 3 1 1 1 1 . . Tool/Special . | . . . . . . . . . . . . . . Unused Backups 40 | . 1 1 . 7 1 8 16 . . . 2 1 3 Power 5 | . 1 . . 1 . . 3 . . . . . . Propulsion 6 | . . . . 1 . 2 1 . . . . . 2 Utility 12 | . . . . 2 . 3 7 . . . . . . Weapon 15 | . . 1 . 3 1 2 4 . . . 2 1 1 Tool/Special 2 | . . . . . . 1 1 . . . . . . Average Slot Usage (%) 90 | . 100 96 94 95 96 96 92 88 88 85 66 72 72 Engine 4 | . 14 . . 7 7 6 5 . . . . . . Core 3 | . . 13 9 1 . 3 3 5 5 7 1 . . Treads 6 | . . 6 1 1 . 5 12 . . . . . . Leg 4 | . . . . 19 23 14 1 . . . . . . Wheel 2 | . 28 21 26 4 . . . . . . . . 3 Hover 1 | . . . . . . . 2 . . . . 3 5 Flight 3 | . . . . . . . 3 17 17 11 10 3 4 Device 11 | . 14 11 16 6 . 5 14 23 23 14 6 6 7 Storage 6 | . 14 14 9 9 7 7 7 . . . . . 1 Processor 18 | . . . 15 25 30 19 12 17 17 27 35 40 35 Hackware 2 | . . . . . 5 6 1 5 5 5 4 2 . Protection 3 | . . . . 2 . 6 5 . . . . . . Energy Gun 1 | . 6 . 5 1 . . 2 . . . . . . Ballistic Gun 3 | . 14 1 5 7 . 2 3 . . . . . . Ballistic Cannon 2 | . . 12 4 . 3 4 3 . . . . . . Launcher 1 | . 7 14 4 3 7 3 . . . . . 2 . Impact Weapon 1 | . . . . 3 7 4 1 . . . . . 1 Slashing Weapon 3 | . . . . . . . 3 17 17 15 4 4 3 Peak Build Rating 158 | 9 10 16 23 29 37 66 101 84 85 96 105 139 158 Average Rating 70 | 7 8 14 21 21 35 53 85 84 84 92 85 108 115 On Entrance 51 | . 8 10 16 22 27 37 65 84 84 85 96 105 87 Naked Turns . | . . . . . . . . . . . . . . Heaviest Build 135 | 13 30 38 39 36 44 62 135 22 22 23 28 36 42 Greatest Support 117 | 20 20 20 30 42 42 90 117 24 24 28 29 26 44 Greatest Overweight (x) 5 | 3 1 3 1 3 1 1 4 . . 1 5 1 1 Average Overweight (x) . | . . 1 1 . . . . . . . . . . Largest Inventory Capacity 25 | 8 15 15 15 15 15 15 25 5 5 5 5 5 5 Average Capacity 13 | 6 11 15 15 15 15 15 16 5 5 5 5 5 5 Most Carried 25 | 6 15 15 15 15 15 15 25 5 5 5 5 5 5 Average Carried 12 | 2 9 14 12 14 14 14 15 5 4 4 4 4 4 Final Capacity 15 | 8 15 15 15 15 15 15 5 5 5 5 5 5 5 Final Carried 15 | 6 15 15 15 15 15 15 5 5 5 5 5 5 4 Class Distribution -------------------- 40% | Mutant 16% | Tank 12% | Commander-Mutant 6% | Scavenger-Sprinter 6% | Scout 5% | Gladiator 3% | Sprinter 3% | Scavenger-Mutant Dominant Class ---------------- Mutant | -10/Materials Mutant | -10/Subcaves Scavenger-Mutant | -8/Materials Mutant | -8/Storage Commander-Mutant | -7/Factory Commander-Mutant | -6/Factory Mutant | -5/Factory Scavenger-Sprinter | -5/Waste Scavenger-Sprinter | -5/Factory Gladiator | -4/Factory Mutant | -3/Research Scout | -3/Quarantine Gladiator | -2/Research Resources | -11 -10 -10 -8 -8 -7 -6 -5 -5 -5 -4 -3 -3 -2 ----------- Run | Yrd Mat Sub Mat Sto Fac Fac Fac Was Fac Fac Res Qua Res Matter Collected 5069 | 310 193 178 100 708 . 548 2242 . 20 90 176 26 478 Remotely 200 | . . . . . . . 200 . . . . . . Salvage Created 6060 | 135 210 161 . 850 . 659 2851 . 28 192 280 67 627 Parts 295 | 6 10 10 . 40 . 24 145 . 2 13 9 1 35 Haulers Intercepted 9 | . . . . 1 . 2 2 . . . 2 . 2 Recyclers Shooed 4 | 1 . . . 1 . 1 1 . . . . . . Parts Field Recycled . | . . . . . . . . . . . . . . Retrieved Matter . | . . . . . . . . . . . . . . Parts Self-Destructed . | . . . . . . . . . . . . . . Prevented . | . . . . . . . . . . . . . . Kills | -11 -10 -10 -8 -8 -7 -6 -5 -5 -5 -4 -3 -3 -2 ------- Run | Yrd Mat Sub Mat Sto Fac Fac Fac Was Fac Fac Res Qua Res Combat Hostiles Destroyed 93 | . 8 7 . 15 . 7 43 . . 5 4 . 4 Melee 16 | . . . . . . . 7 . . 5 . . 4 Guns 29 | . 2 . . 6 . 3 18 . . . . . . Cannons 16 | . . 1 . . . 3 12 . . . . . . AOE 28 | . 6 6 . 8 . 1 3 . . . 4 . . Classes Destroyed 19 | 2 4 1 . 5 . 1 5 . . . . 1 . Worker 17 | . 1 . . . . 4 8 . . . 2 . 2 Builder 7 | . . . . 1 . 1 5 . . . . . . Tunneler 4 | 2 . . . . . . 1 . . 1 . . . Hauler 9 | . . . . 1 . 2 2 . . . 2 . 2 Recycler 8 | 1 . . . 3 . 1 2 . . . . . 1 Mechanic 1 | . . . . . . . 1 . . . . . . Operator 4 | . . . . 1 . . 1 . 1 . . 1 . Watcher 5 | . 1 . . . . . 3 . . . 1 . . Swarmer 15 | . 3 . . 4 . . 4 . . 4 . . . Grunt 35 | . 5 2 . 7 . 6 13 . . . 2 . . Brawler 1 | . . . . 1 . . . . . . . . . Duelist 1 | . . . . . . . 1 . . . . . . Protector 1 | . . . . . . . 1 . . . . . . Researcher 1 | . . . . . . . . . . . . 1 . Sentry 8 | . . . . 3 . . 4 . . 1 . . . Hunter 5 | . . . . . . 1 4 . . . . . . Programmer 21 | . . . . . . . 15 . . . 2 . 4 Behemoth 1 | . . . . . . . 1 . . . . . . Subdweller 5 | . . 5 . . . . . . . . . . . Best Kill Streak 12 | 3 3 4 . 6 . 6 12 . 1 6 5 1 3 Combat Bots Only 8 | . 3 4 . 4 . 3 8 . . 4 2 . 3 Max Kills in Single Turn 3 | 1 2 2 . 2 . 3 2 . 1 1 2 1 1 Gunslinging . | . . . . . . . . . . . . . . Exploded 2 | . 1 2 . 2 . 1 1 . . . 2 . . Melee 1 | . . . . . . . 1 . . 1 . . 1 Uniques/NPCs Destroyed . | . . . . . . . . . . . . . . Combat | -11 -10 -10 -8 -8 -7 -6 -5 -5 -5 -4 -3 -3 -2 -------- Run | Yrd Mat Sub Mat Sto Fac Fac Fac Was Fac Fac Res Qua Res Hostile Shots Fired 1093 | . 29 16 2 96 . 25 416 1 5 26 127 81 269 Missed 394 | . 8 6 . 27 . 8 128 1 3 11 60 36 106 Hits 699 | . 21 10 2 69 . 17 288 . 2 15 67 45 163 Melee 5 | . . . . . . . 5 . . . . . . Projectile 694 | . 21 10 2 69 . 17 283 . 2 15 67 45 163 AOE 1 | . . . . . . . 1 . . . . . . Critical Strikes 51 | . 1 2 . 6 . 2 19 . . . 6 7 8 Part Disruptions 3 | . . . . . . . 2 . . . . . 1 Damage Taken 13737 | . 272 242 34 986 . 247 5169 . 40 262 1730 1271 3484 Core 3865 | . 62 88 16 216 . . 773 . 18 38 718 476 1460 Absorbed by Shields 549 | . . . . . . 59 490 . . . . . . Redirected to Shielding 102 | . . . . . . . 102 . . . . . . Ignored by Resistances 372 | . . . . . . . 192 . . . . . 180 Core Remaining (%) 65 | 100 . 40 . 57 100 100 . . 20 96 . 8 . Volleys Fired 285 | 9 21 20 1 59 . 35 126 . . . 14 . . Largest 3 | 2 2 1 2 2 . 2 3 . . . 1 . . Hottest 162 | 90 70 40 75 75 . 85 162 . . . 120 . . Shots Fired 481 | 18 32 20 2 76 . 50 269 . . . 14 . . Gun 282 | 18 22 . 2 65 . 15 160 . . . . . . Cannon 141 | . . 6 . . . 32 100 . . . 3 . . Launcher 58 | . 10 14 . 11 . 3 9 . . . 11 . . Special . | . . . . . . . . . . . . . . Kinetic 279 | . 11 6 1 55 . 43 163 . . . . . . Thermal 113 | 18 11 . . . . 4 77 . . . 3 . . Explosive 49 | . 10 14 . 5 . . 9 . . . 11 . . Electromagnetic 40 | . . . 1 16 . 3 20 . . . . . . Robot Hit Streak 19 | 3 4 3 2 17 . 5 19 . . . 9 . . Robot Miss Streak 5 | 2 2 2 1 3 . 2 5 . . . 1 . . Penetration Max 1 | . . . . . . . 1 . . . . . . Secondary Targets . | . . . . . . . . . . . . . . Shots Hit Robots 380 | 6 15 9 2 68 . 37 192 . 2 10 12 8 19 Core Hits 239 | 4 18 13 . 33 . 22 107 . 1 6 26 1 8 Critical Kills 7 | . . . . . . . 7 . . . . . . Critical Parts Destroyed 9 | . . . . . . . 9 . . . . . . Critical Strikes 48 | . 3 . . . . 2 35 . . 1 . 2 5 Burn 4 | . 3 . . . . . 1 . . . . . . Destroy 17 | . . . . . . . 17 . . . . . . Blast 16 | . . . . . . 2 14 . . . . . . Smash 1 | . . . . . . . 1 . . . . . . Sever 4 | . . . . . . . 2 . . 1 . 1 . Impale 6 | . . . . . . . . . . . . 1 5 Melee Attacks 179 | . . . . 12 . 7 93 . 3 19 4 17 24 Impact 25 | . . . . 6 . 6 11 . . . . . 2 Slashing 115 | . . . . . . . 81 . 3 19 4 6 2 Piercing 31 | . . . . . . . . . . . . 11 20 Sneak Attacks 19 | . . . . 2 . 3 5 . 1 2 1 1 4 Combat Hostiles 1 | . . . . . . . . . . 1 . . . Follow-up Attacks 14 | . . . . . . . 10 . 1 . . 2 1 Damage Inflicted 17937 | 83 640 845 17 1752 . 1852 8786 . 165 678 1365 475 1279 Guns 4268 | 83 155 . 17 814 . 229 2970 . . . . . . Cannons 2954 | . . 73 . . . 628 2168 . . . 85 . . Explosions 5542 | . 485 772 . 819 . 620 1795 . . . 1051 . . Melee 5160 | . . . . 119 . 375 1853 . 165 678 229 475 1266 Ramming 13 | . . . . . . . . . . . . . 13 Kinetic 4902 | . 55 73 7 626 . 789 3352 . . . . . . Thermal 2227 | 83 100 . . . . 480 1479 . . . 85 . . Explosive 4447 | . 485 772 . 422 . . 1717 . . . 1051 . . Electromagnetic 1188 | . . . 10 585 . 208 385 . . . . . . Impact 1017 | . . . . 119 . 375 523 . . . . . . Slashing 2598 | . . . . . . . 1330 . 165 678 229 154 42 Piercing 1545 | . . . . . . . . . . . . 321 1224 Highest Corruption 10 | . . . . . . 1 10 5 5 . 5 5 2 Average Corruption 5 | . . . . . . 1 6 5 5 . 2 5 1 Corruption Purged 5 | . . . . . . . 5 . . . . . . Corruption Blocked 8 | . . . . . . . . . . . . 8 . Effects 125 | . . . . . . 3 100 3 2 . 9 8 . Message Errors 27 | . . . . . . . 26 . . . . 1 . Matter Fused 31 | . . . . . . 1 21 1 1 . 5 2 . Heat Flow Errors 14 | . . . . . . . 12 . . . 1 1 . Energy Discharges 16 | . . . . . . 1 13 1 . . . 1 . Parts Rejected 5 | . . . . . . . 2 . . . 3 . . Parts Fused 1 | . . . . . . . 1 . . . . . . Data Loss (minor) 14 | . . . . . . . 10 1 . . . 3 . Data Loss (major) 6 | . . . . . . 1 5 . . . . . . Misfires 2 | . . . . . . . 2 . . . . . . Alerts 5 | . . . . . . . 4 . 1 . . . . Misdirections 2 | . . . . . . . 2 . . . . . . Weapon Failures 2 | . . . . . . . 2 . . . . . . Overload Shots . | . . . . . . . . . . . . . . Overflow Damage 1005 | . 15 . . 3 . 151 423 . . 89 28 106 190 Projectiles 29 | . . . . . . 1 28 . . . . . . Explosions 141 | . 15 . . 3 . . 95 . . . 28 . . Melee 835 | . . . . . . 150 300 . . 89 . 106 190 Knockbacks 11 | . . . . 1 . 2 8 . . . . . . Impact 3 | . . . . 1 . 1 1 . . . . . . Kinetic 8 | . . . . . . 1 7 . . . . . . Secondary . | . . . . . . . . . . . . . . Self-Inflicted Damage 475 | . 38 20 . 87 . 14 311 . . . . . 5 Shots 15 | . 3 2 . 4 . 1 5 . . . . . . Rammed 6 | . . . . . . . . . . . . . 6 Targets Rammed 6 | . . . . . . . . . . . . . 6 Kicked . | . . . . . . . . . . . . . . Crushed . | . . . . . . . . . . . . . . Highest Temperature 411 | 120 126 287 39 59 . 106 411 . . . 233 93 221 Average Temperature 99 | 56 48 172 23 15 . 37 124 . . . 62 62 114 Received Heat Transfer 1724 | . 81 333 18 468 . 42 548 . 9 9 81 . 135 Effects 5 | . . . . . . . 5 . . . . . . Shutdowns 3 | . . . . . . . 3 . . . . . . Energy Bleed 2 | . . . . . . . 2 . . . . . . Siege Activations . | . . . . . . . . . . . . . . Martial Activations . | . . . . . . . . . . . . . . Shielding Activations . | . . . . . . . . . . . . . . Robots Disrupted . | . . . . . . . . . . . . . . Combat Hostiles . | . . . . . . . . . . . . . . Robots Corrupted 8 | . . . . 1 . 3 4 . . . . . . Combat Hostiles 3 | . . . . 1 . . 2 . . . . . . Parts Fried 14 | . . . . 2 . 6 6 . . . . . . Impact Corruptions 11 | . . . . . . 6 5 . . . . . . Robots Melted 1 | . . . . . . . 1 . . . . . . Combat Hostiles 1 | . . . . . . . 1 . . . . . . Parts Melted 7 | 1 3 . . . . 1 2 . . . . . . Heat Transferred 3461 | 235 518 . . . . 474 2160 . . . 74 . . Parts Sabotaged . | . . . . . . . . . . . . . . Parts Stolen . | . . . . . . . . . . . . . . Parts Stripped . | . . . . . . . . . . . . . . Power Chain Reactions 4 | . . . . . . 2 2 . . . . . . Alert | -11 -10 -10 -8 -8 -7 -6 -5 -5 -5 -4 -3 -3 -2 ------- Run | Yrd Mat Sub Mat Sto Fac Fac Fac Was Fac Fac Res Qua Res Maximum Alert Level 4 | . . . . 2 . 1 4 1 1 1 2 1 1 Low Security (%) 41 | 100 100 . 100 37 100 69 17 . . 40 28 69 93 Level 1 27 | . . . . 55 . 30 21 100 100 59 53 30 6 Level 2 6 | . . . . 7 . . 10 . . . 18 . . Level 3 18 | . . . . . . . 39 . . . . . . Level 4 5 | . . . . . . . 10 . . . . . . Level 5 . | . . . . . . . . . . . . . . High Security . | . . . . . . . . . . . . . . Max Security . | . . . . . . . . . . . . . . Peak Influence 1147 | 10 159 . 15 416 179 282 1147 399 292 258 436 231 338 Initial 399 | . . . 15 1 179 18 123 399 237 142 110 210 80 Average 372 | 1 62 . 5 216 111 88 613 377 232 209 270 188 102 Influence Increases 5707 | 15 279 50 15 870 . 643 1958 . 95 208 680 133 761 Destroy 0b10 Robot/C 2060 | . 160 40 . 420 . 320 840 . . 100 80 20 80 Destroy 0b10 Robot/NC 300 | 15 10 . . 30 . 60 120 . 5 5 25 5 25 Destroy Leader 492 | . 42 10 . 92 . 78 210 . . 20 16 . 24 Allied During Kill 205 | . . . . 101 . 104 . . . . . . . Trap Triggered on 0b10 20 | . . . . 20 . . . . . . . . . Successful Hack 147 | . . . . 21 . . 71 . . . 14 27 14 Disable Machine 420 | . 15 . . 60 . 60 225 . . . 15 45 . Destroy Structure 608 | . 52 . . 36 . 21 342 . . 8 140 6 3 Partial Spotted 165 | . . . . . . . 15 . 15 60 15 15 45 Lose Combat Pursuer 1290 | . . . 15 90 . . 135 . 75 15 375 15 570 Influence Decreases 5372 | 15 130 169 40 481 355 430 1069 802 142 290 516 364 569 Entered New Map 1778 | . . 73 15 4 215 21 129 742 102 150 100 164 63 Time Decay 2545 | 15 130 80 25 327 140 276 670 40 40 110 246 160 286 Lost Part 836 | . . 16 . 90 . . 270 . . 30 170 40 220 Lost Ally 213 | . . . . 60 . 133 . 20 . . . . . Squads Dispatched 44 | . 1 . . 4 1 6 16 . 1 2 5 4 4 Investigation 5 | . 1 . . 1 . 1 1 . 1 . . . . Extermination 19 | . . . . . 1 3 8 . . 1 2 1 3 Reinforcement 17 | . . . . 3 . 2 4 . . 1 3 3 1 Assault 3 | . . . . . . . 3 . . . . . . Garrison . | . . . . . . . . . . . . . . Intercept . | . . . . . . . . . . . . . . Searches Triggered . | . . . . . . . . . . . . . . Construction Impeded 4 | . . . . 1 . . 3 . . . . . . Haulers Reinforced 5 | . . . . . . 1 1 . . . 3 . . Active Scanning Responses . | . . . . . . . . . . . . . . Cargo Convoy Interrupts 1 | . . . . . . . 1 . . . . . . Stealth | -11 -10 -10 -8 -8 -7 -6 -5 -5 -5 -4 -3 -3 -2 --------- Run | Yrd Mat Sub Mat Sto Fac Fac Fac Was Fac Fac Res Qua Res Distress Signals 9 | . 1 . 1 1 . 1 . . . . 1 . 4 Communications Jammed 19 | . . . . . . . 8 . . 11 . . . Distress Signals 19 | . . . . . . . 8 . . 11 . . . Times Spotted 303 | . 12 6 5 31 . 22 77 6 7 9 36 16 76 Peak Tracking Total 31 | . 4 2 4 8 . 5 7 6 6 5 12 10 31 Tactical Retreats 33 | . . . 1 3 . . 6 . 1 1 8 1 12 Traps | -11 -10 -10 -8 -8 -7 -6 -5 -5 -5 -4 -3 -3 -2 ------- Run | Yrd Mat Sub Mat Sto Fac Fac Fac Was Fac Fac Res Qua Res Traps Triggered 11 | . 1 . . . . . 7 . . 1 . . 2 Indirectly . | . . . . . . . . . . . . . . Trap Hack Attempts 87 | . . . . 69 . 3 15 . . . . . . Triggered . | . . . . . . . . . . . . . . Disarmed 1 | . . . . . . 1 . . . . . . . Reprogrammed 9 | . . . . 8 . . 1 . . . . . . Reused 2 | . . . . 2 . . . . . . . . . Traps Extracted 3 | . . . . . . . 3 . . . . . . Installed 2 | . . . . . . . 2 . . . . . . Triggered 2 | . . . . 2 . . . . . . . . . Machines | -11 -10 -10 -8 -8 -7 -6 -5 -5 -5 -4 -3 -3 -2 ---------- Run | Yrd Mat Sub Mat Sto Fac Fac Fac Was Fac Fac Res Qua Res Machines Disabled 28 | . 1 . . 4 . 4 15 . . . 1 3 . Max in Single Turn 4 | . 1 . . 1 . 4 4 . . . 1 1 . Machines Repaired . | . . . . . . . . . . . . . . Machines Dismantled . | . . . . . . . . . . . . . . Machines Sabotaged . | . . . . . . . . . . . . . . Overloaded Fab Kills . | . . . . . . . . . . . . . . Hacking | -11 -10 -10 -8 -8 -7 -6 -5 -5 -5 -4 -3 -3 -2 --------- Run | Yrd Mat Sub Mat Sto Fac Fac Fac Was Fac Fac Res Qua Res Machines Accessed 37 | . 1 . 1 5 1 1 10 . 2 . 6 6 4 Terminals 28 | . 1 . 1 4 1 . 7 . 1 . 4 6 3 Fabricators 5 | . . . . . . 1 1 . . . 2 . 1 Repair Stations 3 | . . . . 1 . . 2 . . . . . . Recycling Units . | . . . . . . . . . . . . . . Scanalyzers 1 | . . . . . . . . . 1 . . . . Garrison Access . | . . . . . . . . . . . . . . Total Hacks 88 | . 2 . 2 15 2 3 23 . 6 . 18 11 6 Successful 28 | . 1 . . 7 . . 7 . 3 . 4 4 2 Failed 60 | . 1 . 2 8 2 3 16 . 3 . 14 7 4 Catastrophic 18 | . 1 . . 3 . 1 4 . 1 . 3 2 3 Database Lockouts . | . . . . . . . . . . . . . . Manual 29 | . 2 . 2 9 . . 8 . 2 . 4 1 1 Terminals 67 | . 2 . 2 14 2 . 16 . 3 . 13 11 4 Fabricators 11 | . . . . . . 3 1 . . . 5 . 2 Repair Stations 7 | . . . . 1 . . 6 . . . . . . Recycling Units . | . . . . . . . . . . . . . . Scanalyzers 3 | . . . . . . . . . 3 . . . . Garrison Access . | . . . . . . . . . . . . . . Terminal Hacks 16 | . 1 . . 5 . . 3 . . . 2 4 1 Record 2 | . . . . . . . . . . . . 2 . Part Schematic 1 | . . . . . . . 1 . . . . . . Robot Analysis 2 | . 1 . . 1 . . . . . . . . . Open Door 2 | . . . . 1 . . . . . . . 1 . Branch Access Points 1 | . . . . . . . 1 . . . . . . Scanalyzer Index 1 | . . . . 1 . . . . . . . . . Locate Traps 5 | . . . . 1 . . 1 . . . 2 . 1 Hauler Manifests 1 | . . . . 1 . . . . . . . . . Zone Layout 1 | . . . . . . . . . . . . 1 . Fabricator Hacks 4 | . . . . . . . 1 . . . 2 . 1 Network Status 1 | . . . . . . . . . . . 1 . . Load Schematic 2 | . . . . . . . . . . . 1 . 1 Build 1 | . . . . . . . 1 . . . . . . Repair Station Hacks 3 | . . . . 1 . . 2 . . . . . . Scan Component 3 | . . . . 1 . . 2 . . . . . . Recycling Unit Hacks . | . . . . . . . . . . . . . . Scanalyzer 3 | . . . . . . . . . 3 . . . . Insert Component 2 | . . . . . . . . . 2 . . . . Analyze 1 | . . . . . . . . . 1 . . . . Garrison Access Hacks . | . . . . . . . . . . . . . . Unauthorized Hacks 2 | . . . . 1 . . 1 . . . . . . Terminals 2 | . . . . 1 . . 1 . . . . . . Botnet 2 | . . . . 1 . . 1 . . . . . . Fabricators . | . . . . . . . . . . . . . . Repair Stations . | . . . . . . . . . . . . . . Recycling Units . | . . . . . . . . . . . . . . Scanalyzers . | . . . . . . . . . . . . . . Garrison Access . | . . . . . . . . . . . . . . Data Cores Recovered 2 | . . . . . . . 1 . . . . 1 . Used . | . . . . . . . . . . . . . . Hacking Detections 31 | . 1 . 1 3 1 1 9 . 1 . 6 4 4 Full Trace Events 3 | . . . . 1 . . 1 . 1 . . . . Feedback Events . | . . . . . . . . . . . . . . Feedback Blocked . | . . . . . . . . . . . . . . Robot Schematics Acquired 2 | . . . . . . . . . . . . 2 . Robots Built . | . . . . . . . . . . . . . . Authchips . | . . . . . . . . . . . . . . Time . | . . . . . . . . . . . . . . Total Robot Build Rating . | . . . . . . . . . . . . . . Part Schematics Acquired 6 | . . . . . . . 1 . 1 . . 4 . Parts Built 2 | . . . . . . . 2 . . . . . . Authchips . | . . . . . . . . . . . . . . Time 128 | . . . . . . . 128 . . . . . . Total Part Build Rating 16 | . . . . . . . 16 . . . . . . Parts Repaired . | . . . . . . . . . . . . . . Time . | . . . . . . . . . . . . . . Parts Recycled . | . . . . . . . . . . . . . . Recycled Matter . | . . . . . . . . . . . . . . Retrieved Matter . | . . . . . . . . . . . . . . Retrieved Components . | . . . . . . . . . . . . . . Parts Scanalyzed 1 | . . . . . . . . . 1 . . . . Part Schematics Acquired 1 | . . . . . . . . . 1 . . . . Parts Damaged . | . . . . . . . . . . . . . . Bothacking | -11 -10 -10 -8 -8 -7 -6 -5 -5 -5 -4 -3 -3 -2 ------------ Run | Yrd Mat Sub Mat Sto Fac Fac Fac Was Fac Fac Res Qua Res Used RIF Installer . | . . . . . . . . . . . . . . Robots Hacked 1 | . . . . . . 1 . . . . . . . Non-combat 1 | . . . . . . 1 . . . . . . . Combat . | . . . . . . . . . . . . . . Robot Hacks Applied 1 | . . . . . . 1 . . . . . . . find_recycling 1 | . . . . . . 1 . . . . . . . Relay Couplers Released 2 | . . . . . . . 2 . . . . . . Machine Destruction 2 | . . . . . . . 2 . . . . . . Fabnet Peak Effective % . | . . . . . . . . . . . . . . Robots Rewired . | . . . . . . . . . . . . . . Allies Hacked . | . . . . . . . . . . . . . . Hacks Repelled . | . . . . . . . . . . . . . . Allies | -11 -10 -10 -8 -8 -7 -6 -5 -5 -5 -4 -3 -3 -2 -------- Run | Yrd Mat Sub Mat Sto Fac Fac Fac Was Fac Fac Res Qua Res Total Allies 11 | . . . . 10 . . . 1 . . . . . Largest Group 10 | . . . . 10 7 7 . 1 . . . . . Highest-Rated Group 173 | . . . . 173 125 125 . 31 . . . . . Highest-Rated Ally 31 | . . . . 29 29 29 . 31 . . . . . Total Orders . | . . . . . . . . . . . . . . Ally Attacks 140 | . . . . 36 . 99 . 5 . . . . . Total Damage 1872 | . . . . 516 . 1252 . 104 . . . . . Kills 19 | . . . . 6 . 13 . . . . . . . Allies Corrupted . | . . . . . . . . . . . . . . Allies Melted . | . . . . . . . . . . . . . . Intel | -11 -10 -10 -8 -8 -7 -6 -5 -5 -5 -4 -3 -3 -2 ------- Run | Yrd Mat Sub Mat Sto Fac Fac Fac Was Fac Fac Res Qua Res Active Infowar (turns) 8721 | 112 305 257 82 471 289 1104 4219 92 93 223 531 321 622 Optics 7656 | . . 120 82 388 289 1104 3791 92 93 223 531 321 622 Sensors 1546 | . . . . 83 . 377 494 92 93 223 184 . . Terrain 163 | 95 . . 68 . . . . . . . . . . Traps 243 | . . . 7 236 . . . . . . . . . Seismic 577 | 88 305 137 . . . . . . . . 47 . . Jamming 1307 | . . . . . . . 840 92 93 223 46 . 13 Robot Analysis Total 2 | . 1 . . 1 . . . . . . . . . Derelict Logs Recovered . | . . . . . . . . . . . . . . Drone Launches . | . . . . . . . . . . . . . . Drone Recoveries . | . . . . . . . . . . . . . . Exploration | -11 -10 -10 -8 -8 -7 -6 -5 -5 -5 -4 -3 -3 -2 ------------- Run | Yrd Mat Sub Mat Sto Fac Fac Fac Was Fac Fac Res Qua Res Turns Passed 9249 | 164 305 316 82 818 289 1104 4289 92 93 223 531 321 622 Spaces Moved 7853 | 141 268 240 67 345 174 538 2891 169 245 406 941 436 992 Core 32 | 16 . . . . . . . . . . 15 . 1 Treads 1418 | . . . . 8 . 151 1259 . . . . . . Legs 855 | . . . . 294 174 387 . . . . . . . Wheels 744 | 125 268 240 67 43 . . . . . . . . 1 Hover 479 | . . . . . . . . . . . . 262 217 Flight 4325 | . . . . . . . 1632 169 245 406 926 174 773 Fastest Speed 30 | 50 80 95 95 95 123 100 30 32 32 32 35 45 33 Average Speed 87 | 79 87 109 95 143 156 171 107 32 32 35 40 54 50 Slowest Speed 490 | 200 95 125 95 330 193 193 490 32 32 120 300 110 157 Overloaded Moves . | . . . . . . . . . . . . . . Propulsion Burnouts . | . . . . . . . . . . . . . . Robots Hopped 62 | . . . . . . . 6 . 5 . 35 1 15 Potential Cave-ins 17 | . . . . . . . 4 . . . . 13 . Cave-ins Triggered . | . . . . . . . . . . . . . . Exploration Rate (%) 31 | 4 45 22 8 58 5 24 48 86 10 13 29 46 37 Regions Visited 13 Branch Regions 3 Pre-discovered Areas . | . . . . . . . . . . . . . . Known Exits Taken 2 | . . . . . . . . . . . 1 1 . Unknown Exits Taken 9 | 1 1 1 1 1 1 1 . . 1 1 . . . Scrap Searched 3 | . . 3 . . . . . . . . . . . Spaces Dug 48 | . 6 . . 1 . . 33 . . 4 . 3 1 Terrain Destroyed 504 | . 47 97 . 51 . 19 191 . . 4 91 3 1 Melee 42 | . . . . 1 . . 33 . . 4 . 3 1 Projectile 58 | . . 2 . . . 7 49 . . . . . . AOE 404 | . 47 95 . 50 . 12 109 . . . 91 . . Terrain Rammed . | . . . . . . . . . . . . . . Walls Destroyed . | . . . . . . . . . . . . . . Machines Disabled . | . . . . . . . . . . . . . . Actions | -11 -10 -10 -8 -8 -7 -6 -5 -5 -5 -4 -3 -3 -2 --------- Run | Yrd Mat Sub Mat Sto Fac Fac Fac Was Fac Fac Res Qua Res Total 9517 | 169 306 278 81 590 195 669 3741 206 250 459 1024 495 1054 Wait 618 | 3 4 . . 40 5 15 403 38 3 27 56 22 2 Move 7730 | 140 267 239 66 344 173 537 2879 168 235 405 878 433 966 Hop 49 | . . . . . . . 6 . 4 . 27 1 11 Pick Up 121 | 5 9 8 5 13 6 17 43 . 1 1 4 5 4 Fast Attach 152 | 8 . 2 . 14 1 6 60 . 1 6 22 7 25 Attach 44 | . . 2 4 2 2 4 20 . . 1 5 1 3 Detach 39 | 1 . . . 3 1 6 15 . 1 1 4 3 4 Swap 84 | 3 3 . 4 13 2 17 35 . 2 1 3 . 1 Drop 152 | . 2 7 1 21 5 22 64 . 1 3 7 7 12 Fire 285 | 9 21 20 1 59 . 35 126 . . . 14 . . Melee 145 | . . . . 12 . 7 72 . 2 14 4 14 20 Ram 6 | . . . . . . . . . . . . . 6 Kick . | . . . . . . . . . . . . . . Crush . | . . . . . . . . . . . . . . Escape Stasis 3 | . . . . . . . 1 . . . . 2 . Rewire . | . . . . . . . . . . . . . . Trap 89 | . . . . 69 . 3 17 . . . . . . Miscellaneous . | . . . . . . . . . . . . . . Route ------- -11/Scrapyard -10/Materials (discovered 3 exits: [*Mat] / [*Min] / [*Sub]) -10/Subcaves (discovered 2 exits: *Mat x2) -8/Materials -8/Storage -7/Factory -6/Factory -5/Factory (discovered 2 exits: Upp x2) -5/Waste -5/Factory -4/Factory -3/Research -3/Quarantine -2/Research (discovered 1 exit: [*Tes]) History --------- Turn | Location | Event 7 | -11/Scrapyard | Discovered new exit (range 15) 165 | -11/Scrapyard | Entered Materials 252 | -10/Materials | Discovered new exit (range 7) 339 | -10/Materials | Build established: Mutant 422 | -10/Materials | Discovered new exit (range 13) 444 | -10/Materials | Discovered new exit (range 8) 470 | -10/Materials | Entered Subcaves 482 | -10/Subcaves | Disturbed a concealed Subdweller 559 | -10/Subcaves | Discovered new exit (range 15) 623 | -10/Subcaves | Core integrity fell below 50% 743 | -10/Subcaves | Discovered new exit (range 15) 759 | -10/Subcaves | Shifting Twisted Machinery released Battle Rifle 781 | -10/Subcaves | Shifting Twisted Machinery released Sub. Shrapnel Launcher 786 | -10/Subcaves | Entered Materials 786 | -8/Materials | Evolved 4 slots: Propulsion x1, Utility x3 851 | -8/Materials | Discovered new exit (range 8) 868 | -8/Materials | Entered Storage 1037 | -8/Storage | Lost 4 parts (1p3n) 1507 | -8/Storage | Assisted by bots powering up and referring to "LRC-V3" 1565 | -8/Storage | Lost 4 parts (1p2n1u) 1592 | -8/Storage | Discovered new exit (range 18) 1686 | -8/Storage | Entered Factory 1686 | -7/Factory | Accompanied by 7 allies 1686 | -7/Factory | Evolved 2 slots: Utility x1, Weapon x1 1774 | -7/Factory | Discovered new exit (range 19) 1854 | -7/Factory | Build established: Commander-Mutant 1975 | -7/Factory | Entered another Factory area 1975 | -6/Factory | Accompanied by 7 allies 1975 | -6/Factory | Evolved 2 slots: Power x1, Utility x1 2746 | -6/Factory | Lost 3 allies 2983 | -6/Factory | Discovered new exit (range 20) 2997 | -6/Factory | Build established: Mutant 3079 | -6/Factory | Entered another Factory area 3079 | -5/Factory | Evolved 2 slots: Propulsion x1, Utility x1 3178 | -5/Factory | Identified exit to Upper Caves 3427 | -5/Factory | Fabricated Adv. Point Defense System (x2) 4230 | -5/Factory | Cargo convoy interrupted 4429 | -5/Factory | Spotted B-75 Beast 4584 | -5/Factory | Destroyed B-75 Beast 4713 | -5/Factory | Build established: Tank 5179 | -5/Factory | First assault squad dispatched 5305 | -5/Factory | Lost 4 parts (2n2u) 5313 | -5/Factory | System corruption reached 10% 5336 | -5/Factory | Destroyed 8 combat bots 6440 | -5/Factory | Core integrity fell below 50% 6489 | -5/Factory | Lost 11 parts (2p4n3u2w) 6717 | -5/Factory | Build established: Mutant 7208 | -5/Factory | Build established: Scavenger-Sprinter 7368 | -5/Factory | Sucked down chute 7368 | -5/Factory | Entered Waste 7369 | -5/Waste | Met a frightened Derelict 7372 | -5/Waste | Spotted C-40 Crusher 7406 | -5/Waste | Spotted C-40 Crusher 7424 | -5/Waste | Spotted C-40 Crusher 7432 | -5/Waste | Spotted C-40 Crusher 7432 | -5/Waste | Spotted C-40 Crusher 7452 | -5/Waste | Spotted C-40 Crusher 7457 | -5/Waste | Discovered new exit (range 11) 7460 | -5/Waste | Entered Factory 7550 | -5/Factory | Discovered new exit (range 5) 7553 | -5/Factory | Entered another Factory area 7553 | -4/Factory | Evolved 2 slots: Utility x2 7683 | -4/Factory | Lost 3 parts (2n1u) 7740 | -4/Factory | Discovered new exit (range 17) 7776 | -4/Factory | Entered Research 7776 | -3/Research | Evolved 2 slots: Utility x2 7933 | -3/Research | Build established: Gladiator 7982 | -3/Research | Lost 5 parts (2n1u2w) 8118 | -3/Research | Lost 4 parts (1p2u1w) 8279 | -3/Research | Core integrity fell below 50% 8301 | -3/Research | Found Gamma Bomb Array 8304 | -3/Research | Discovered new exit (range 5) 8306 | -3/Research | Identified exit to Quarantine 8307 | -3/Research | Entered Quarantine 8324 | -3/Quarantine | Found Sigix Corpse 8443 | -3/Quarantine | Build established: Scout 8454 | -3/Quarantine | Met incapacitated Sigix Warrior 8454 | -3/Quarantine | Lockdown squad dispatched 8457 | -3/Quarantine | Acquired the access code to the Sigix quarantine chamber 8458 | -3/Quarantine | Unlocked Sigix quarantine chamber 8462 | -3/Quarantine | Found Sigix Containment Pod 8498 | -3/Quarantine | Spotted Lightning 8506 | -3/Quarantine | Found Alien Artifact 8506 | -3/Quarantine | Identified Phase Armor 8510 | -3/Quarantine | Spotted Lightning 8510 | -3/Quarantine | Spotted Lightning 8518 | -3/Quarantine | Scanned by Researcher 8520 | -3/Quarantine | Found Alien Reactor 8520 | -3/Quarantine | Identified Matter Drive 8576 | -3/Quarantine | Core integrity fell below 20% 8610 | -3/Quarantine | Discovered new exit (range 15) 8627 | -3/Quarantine | Identified exit to Research 8628 | -3/Quarantine | Entered Research 8628 | -2/Research | Evolved 2 slots: Propulsion x2 8729 | -2/Research | Found Prototype Device 8729 | -2/Research | Identified Exp. EM Shield 8950 | -2/Research | Found Adv. Force Booster 9072 | -2/Research | Lost 7 parts (3n3u1w) 9150 | -2/Research | Spotted B-90 Cyclops 9219 | -2/Research | Discovered new exit (range 17) 9226 | -2/Research | Core integrity fell below 50% 9240 | -2/Research | Core integrity fell below 20% 9250 | -2/Research | Destroyed by P-80 Master with Gamma Rifle Last Messages --------------- 09222_ Slug penetrates Wall. 09223_ P-80 Master resets Y-72 Warden, system corruption cleaned. 09224_ Penetrated by Slug. 09225_ S-43 Plague suffers critical hit (Destroy). 09226_ Penetrated by Slug. 09228_ P-80 Master suffers critical hit (Impale). 09228_ Slug penetrates Wall. 09230_ Penetrated by Slug. 09230_ Plasma Lance destroyed. 09232_ Slug penetrates Swarm Drone. 09232_ P-80 Master suffers critical hit (Impale). 09232_ Destroyed Mic. Antimatter Reactor. 09233_ Penetrated by Slug. 09236_ P-80 Master suffers critical hit (Impale). 09236_ Destroyed Adv. Remote Datajack. 09236_ P-80 Master destroyed. 09237_ Penetrated by Slug. 09240_ Acquired 44 matter. 09242_ Force Lance destroyed. 09244_ Slammed into P-80 Master. Map ----- +----------------------------------------------------+ | ?????????????????????????????????????????????????? | | ?????????????????????????????????????????????????? | | ?????????????????????????????????????????????????? | | ?????????????????????????????????????????????????? | | ?????????????????????????????????????????????????? | | ?????????????????????????????????????????????????? | | ?????????#########??????????????????????????#????? | | ?????????# #???????????????????????? ##???? | | ?????????# #??????????????????????? T#???? | | ?????????# #???????############### #???? | | ?????????+ #???????# #????? | | ?????????# !! ######### #????? | | ?????????# #????? | | ?????????# ######### #????? | | ?????????### ###???????# ###+###########????? | | ???????????# #?????????# # ########## | | ???????????# #?????????# # " | | ???????????# #?????????###### ########## | | ???????????# #?#########????#*/ """ #????????? | | ???????????# # =#????#] """ #????????? | | ???????????# # #????# """ #????????? | | ???????????# + ! #????# #????????? | | ???????????# # = #????# #????????? | | ???######?## ##########################????????? | | ???# = ]# #???????# ############???????? | | ???# # #########@ ??? | | ???# " ![=%!=%%%%p < p ??? | | ???# # ######### ??? | | ???# = # #???????# ############+##????? | | ???# ?#######???????#######??????????????????? | | ???######????????????????????????????????????????? | | ?????????????????????????????????????????????????? | | ?????????????????????????????????????????????????? | | ?????????????????????????????????????????????????? | | ?????????????????????????????????????????????????? | | | | | | | | | | | | | | | | | | | | | | | | | | | | | | | +----------------------------------------------------+ Best States ------------- Heat Dissipation 59 Coolant Potential 65 Energy Generation 33 Energy Capacity 880 Matter Stores 300 Matter Capacity 300 Sight Range 22 Robot Scan Range 16 Terrain Scan Range 16 Terrain Scan Density 10 Jamming Range 12 EM Shielding 3 Corruption Containment 8 Corruption Block 20 Armor Coverage 450 Resistance: KI 20 Resistance: TH 10 Resistance: EM 75 Power Shielding 66 Point Defense Rating 480 Phase Shifting 10 Evasion (%) 71 Targeting Accuracy 18 Melee Accuracy 32 Launcher Accuracy 60 Target Analysis 9 Core Analysis 6 Recoil Reduction 4 Particle Charging 15 Kinecelleration 30 Force Boost 40 Salvage Targeting 3 Offensive Hacking 10 Defensive Hacking 12 Trap Extractor Capacity 6 Item Schematics ----------------- Imp. Thunder Leg | -5/Factory | Hacked Xenon Bombardment Thruster | -5/Factory | Scanalyzed Cld. Field Propulsion Drive | -3/Quarantine | Archive Quantum Shading Machine | -3/Quarantine | Archive Hvy. Neutron Cannon | -3/Quarantine | Archive Prc. Energy Filter | -3/Quarantine | Archive Robot Schematics ------------------ B-74 Champion | -3/Quarantine | Archive K-01 Serf | -3/Quarantine | Archive Fabricated ------------ Adv. Point Defense System | x2 | -5/Factory | Preloaded Repaired ---------- Nothing Alien Tech Used ----------------- Phase Armor Matter Drive Achievements -------------- False Reunion Challenges ------------ None Game ------ Seed MiningResetDevice Manual? 0 Play Time 02:38:55 Cumulative 220.2 hours Start 2025.07.13 @ 13:47:06 End 2025.07.16 @ 16:06:10 Sessions 6 Manual Loads 0 Difficulty Rogue Special Mode None Game No. 222 Rogue 222 Adventurer 0 Explorer 0 Win Type - Total 0 Types 0/0/0/0/0/0/0/0/0/0 Lore% 23 Gallery% 56 Achievement% 45 Wizard Run 0 Options --------- Layout 0 ASCII 0 Keyboard 1 Movement Vi Keybinds 0 Fullscreen 1 Font 24/Smallcaps Map View 76x50 Zoom Use 0% Tactical HUD 1 Map Filters NONE Filters NONE Steam 1 RUN: 8eca81c2-c973-45b4-9b74-8ddb7d7d4f09